bitfinex/quotes_ETHUSD_20241101
["timestamp","ask_amount","ask_price","bid_price","bid_amount"]
[1730425242415,3.97876,2513.4,2513.0,0.932]
[1730425242816,7.95753,2513.4,2513.0,0.932]
[1730425243042,3.97886,2513.3,2513.0,0.932]
[1730425243224,3.97876,2513.4,2513.0,0.932]
[1730425243616,3.97876,2513.4,2512.5,3.0]
[1730425243617,3.97936,2513.0,2512.5,0.9407]
[1730425243821,0.9173,2513.3,2512.2,0.9907]
[1730425244087,3.98019,2512.5,2512.2,0.9907]
[1730425244227,3.98073,2512.1,2511.8,0.9907]
[1730425244936,7.96161,2512.1,2511.8,0.9907]
[1730425245264,0.796021,2512.5,2511.8,4.97189]
[1730425245477,3.19129985,2512.5,2511.5,4.97228]
[1730425245618,7.96191,2512.0,2511.5,0.9907]
[1730425245820,3.98089,2512.0,2511.5,0.9907]
[1730425246239,3.0,2512.4,2511.5,0.9907]
[1730425246447,3.98119,2511.9,2511.5,0.9907]
[1730425246788,3.98119,2511.9,2511.2,3.98204]
[1730425246789,3.98183,2511.5,2511.2,1.0112]
[1730425246915,3.98163,2511.6,2510.9,1.0112]
[1730425247256,3.98212,2511.3,2510.9,1.0112]
[1730425247466,3.98221,2511.2,2510.4,3.98337]
[1730425247756,3.98247,2511.0,2510.5,1.0034]
[1730425248074,4.778939,2511.0,2510.5,1.0034]
[1730425248217,3.98273,2510.9,2510.5,1.0034]
[1730425248651,4.778939,2511.0,2510.5,1.0034]
[1730425249454,4.97905,2511.7,2511.0,3.98244]
[1730425249659,4.97905,2511.7,2511.1,3.9822]
[1730425249820,3.98145,2511.7,2511.2,0.939]
[1730425250163,3.98071,2512.2,2511.6,3.9815]
[1730425250653,3.97992,2512.7,2511.2,1.01864337]
[1730425250654,0.9314,2512.7,2511.9,1.0005]
[1730425250858,0.9314,2512.7,2512.2,3.98056]
[1730425250859,0.41226999,2512.6,2512.2,3.98056]
[1730425251049,0.41226999,2512.6,2512.1,3.98068]
[1730425251356,3.98011,2512.5,2511.9,4.98145]
[1730425251746,3.98022,2512.5,2511.9,1.0005]
[1730425251929,4.91125,2512.7,2512.0,3.98082]
[1730425252118,5.664495,2512.7,2512.0,3.98082]
[1730425252322,3.97985,2512.7,2512.0,3.98082]
[1730425252563,3.97985,2512.7,2512.2,3.98056]
[1730425252721,3.0,2512.8,2512.2,3.98056]
[1730425252931,3.97994,2512.6,2512.0,3.98082]
[1730425253347,3.97992,2512.7,2512.2,3.98056]
[1730425254251,3.97992,2512.7,2512.0,3.98076]
[1730425254481,3.98005,2512.6,2512.0,4.876998]
[1730425254655,3.98051,2512.3,2511.7,3.98134]
[1730425254980,3.98051,2512.3,2511.6,0.983]
[1730425254981,3.98049,2512.3,2511.6,0.983]
[1730425255181,1.0154,2512.4,2511.6,0.983]
[1730425255182,3.98083,2512.1,2511.6,0.983]
[1730425255546,6.19129985,2512.8,2511.6,0.983]
[1730425255880,3.9801,2512.5,2511.8,3.98111]
[1730425256064,3.98026,2512.4,2511.8,3.98111]
[1730425256247,3.97994,2512.6,2512.0,3.9808]
[1730425256669,5.61435999,2512.7,2512.0,3.9808]
[1730425256852,3.98011,2512.5,2512.0,3.9808]
[1730425257057,11.14047985,2513.1,2511.6,0.983]
[1730425257058,3.97,2513.1,2512.1,1.34298]
[1730425257259,3.97958,2512.9,2512.2,3.98046]
[1730425257563,7.95849,2513.1,2512.4,7.96026]
[1730425257767,3.97921,2513.1,2512.4,7.96026]
[1730425258100,2.63650863,2513.2,2512.6,3.97992]
[1730425258265,5.61278863,2513.2,2512.6,3.97985]
[1730425258445,1.63370863,2513.2,2512.7,4.92463]
[1730425258782,3.97949,2512.9,2512.7,0.9449]
[1730425258949,3.97929,2513.1,2512.7,0.9449]
[1730425259288,3.97894,2513.3,2512.7,0.9449]
[1730425259489,3.97916,2513.1,2512.7,0.9449]
[1730425259783,3.97958,2512.9,2512.3,4.89481]
[1730425260160,3.9793,2513.0,2512.3,0.9145]
[1730425260483,3.97946,2512.9,2512.3,0.9145]
[1730425260683,7.95905,2512.9,2512.3,0.9145]
[1730425260847,3.98025,2512.4,2512.3,0.99410792]
[1730425261045,3.98006,2512.6,2512.3,0.9145]
[1730425261583,4.378066,2512.6,2512.0,4.89638]
[1730425261883,3.98006,2512.6,2512.0,0.9155]
[1730425262065,3.9801,2512.5,2512.0,0.9155]
[1730425262274,3.98055,2512.3,2511.7,0.9155]
[1730425262446,3.9809,2512.0,2511.7,0.9155]
[1730425262978,3.9809,2512.0,2511.4,4.9387]
[1730425263187,3.98066,2512.2,2511.5,3.98158]
[1730425263351,3.98083,2512.1,2511.5,3.98158]
[1730425264189,3.981,2512.0,2511.4,4.93864]
[1730425264359,3.98105,2511.9,2511.4,0.9569]
[1730425264973,3.98105,2511.9,2511.4,4.93873]
[1730425265455,3.98083,2512.1,2511.5,3.98166]
[1730425265661,3.9805,2512.3,2511.7,3.98134]
[1730425265971,3.98004,2512.6,2512.0,3.98075]
[1730425266179,4.870491,2512.6,2512.0,3.98075]
[1730425266561,3.97952,2512.9,2512.3,3.9804]
[1730425266744,3.97927,2513.1,2512.5,3.98]
[1730425266942,3.97927,2513.1,2512.2,4.96887]
[1730425267168,3.9795,2512.9,2512.4,3.98023]
[1730425267388,3.97939,2513.0,2512.4,3.98023]
[1730425267679,3.97939,2513.0,2512.2,0.9883]
[1730425267885,3.97954,2512.9,2512.2,0.9883]
[1730425268056,3.97954,2512.9,2512.2,4.96874]
[1730425268255,3.97954,2512.9,2512.2,5.520614]
[1730425268664,3.97954,2512.9,2512.3,3.98028]
[1730425268868,3.97924,2513.1,2512.2,1.540174]
[1730425269069,3.97924,2513.1,2512.5,3.98007]
[1730425269444,3.97924,2513.1,2512.4,3.98017]
[1730425269445,3.97924,2513.1,2512.4,7.96029]
[1730425269652,3.97931,2513.0,2512.4,7.96029]
[1730425270285,3.97931,2513.0,2512.4,3.98012]
[1730425270581,3.97924,2513.1,2512.2,0.9883]
[1730425270793,3.97891,2513.3,2512.7,0.946]
[1730425271346,3.97891,2513.3,2512.8,3.97958]
[1730425271561,3.97925,2513.1,2512.7,0.946]
[1730425272385,3.97891,2513.3,2512.7,0.946]
[1730425272386,3.97843,2513.6,2513.0,3.97917]
[1730425272580,8.93188,2513.8,2513.1,3.97902]
[1730425272793,0.9756,2514.1,2513.2,0.9321]
[1730425272955,4.95318,2514.1,2513.5,3.97846]
[1730425273788,3.97755,2514.2,2513.5,3.97842]
[1730425273789,5.54826925,2514.2,2513.5,3.97842]
[1730425273994,5.54826925,2514.2,2513.3,7.95745]
[1730425274161,3.97758,2514.1,2513.3,4.38368294]
[1730425274371,1.57071925,2514.2,2513.6,3.97826]
[1730425274549,0.05970038,2514.3,2513.7,3.97806]
[1730425274747,0.05970038,2514.3,2513.6,0.9991]
[1730425274952,4.03707038,2514.3,2513.6,4.97732]
[1730425275183,8.01443038,2514.3,2513.6,5.872893]
[1730425275354,4.03706038,2514.3,2513.6,5.872893]
[1730425276091,3.97746,2514.2,2513.6,1.894673]
[1730425277474,3.97758,2514.1,2513.6,1.894673]
[1730425278066,3.97775,2514.0,2513.6,1.894673]
[1730425278455,3.97758,2514.1,2513.6,0.9991]
[1730425278661,3.97743,2514.2,2513.6,4.97744]
[1730425279108,4.03702038,2514.3,2513.6,4.07866079]
[1730425279109,0.05970038,2514.3,2513.6,4.07866079]
[1730425279254,3.97582,2515.2,2514.1,3.97744]
[1730425279456,3.9775,2514.2,2513.8,0.9514]
[1730425279680,3.97672,2514.7,2513.8,0.9514]
[1730425279994,3.97672,2514.7,2514.1,3.97747]
[1730425280703,3.97672,2514.7,2514.2,3.97736]
[1730425280886,3.97672,2514.7,2514.1,3.97747]
[1730425281056,3.97672,2514.7,2514.2,0.492887]
[1730425281259,7.95282,2514.9,2514.2,4.470197]
[1730425281458,0.9686,2515.3,2514.5,3.97689]
[1730425281459,3.97603,2515.1,2514.5,3.97689]
[1730425281695,3.97603,2515.1,2514.4,0.9668]
[1730425281993,3.97646,2514.8,2514.4,0.9668]
[1730425282497,3.97628,2515.0,2514.4,4.94388]
[1730425282699,3.97628,2515.0,2514.4,0.9668]
[1730425282996,3.97677,2514.7,2514.4,1.461195]
[1730425283197,3.97646,2514.8,2514.4,0.9668]
[1730425283889,3.97622,2515.0,2514.4,0.9668]
[1730425284063,7.9525,2515.0,2514.4,0.9668]
[1730425284686,0.9686,2515.3,2514.5,3.9768]
[1730425284687,3.97599,2515.1,2514.5,3.9768]
[1730425284863,3.97589,2515.2,2514.6,3.97677]
[1730425285064,3.97589,2515.2,2514.6,4.868807]
[1730425285361,7.95119,2515.4,2514.8,3.97642]
[1730425285565,3.97597,2515.2,2514.6,0.892037]
[1730425285784,3.97594,2515.2,2514.6,4.868767]
[1730425286290,3.97594,2515.2,2514.7,3.9766]
[1730425287001,3.97559,2515.4,2514.7,3.9766]
[1730425287159,3.97529,2515.6,2515.0,3.97604]
[1730425287356,3.97,2515.7,2515.2,3.97579]
[1730425287563,3.97492,2515.8,2514.8,1.07132868]
[1730425287564,3.9752,2515.6,2515.0,7.95209]
[1730425287871,3.97492,2515.8,2515.0,3.97604]
[1730425288065,3.97465,2516.0,2515.4,0.9918]
[1730425288297,7.16528985,2516.4,2515.4,0.9918]
[1730425288298,3.97473,2515.9,2515.4,0.9918]
[1730425288493,3.97424,2516.2,2515.4,4.9673]
[1730425288795,3.97458,2516.0,2515.4,4.96719]
[1730425289788,3.97458,2516.0,2515.4,8.9426]
[1730425290006,3.97458,2516.0,2515.4,4.96719]
[1730425290601,3.97481,2515.9,2515.4,0.9918]
[1730425290817,3.97473,2515.9,2515.4,0.9918]
[1730425290964,7.94926,2516.0,2515.4,0.9918]
[1730425291302,3.97472,2515.9,2515.4,4.96731]
[1730425291501,3.97472,2515.9,2515.4,0.9918]
[1730425291803,3.97497,2515.8,2515.4,0.9918]
[1730425292421,3.97472,2515.9,2515.4,0.9918]
[1730425292794,3.97464,2516.0,2515.4,0.9918]
[1730425292795,3.97464,2516.0,2515.4,4.9672]
[1730425292995,3.97449,2516.1,2515.5,3.97523]
[1730425293204,3.97459,2516.0,2515.5,3.97523]
[1730425293402,3.97487,2515.8,2515.4,0.9918]
[1730425293590,3.97547,2515.5,2515.1,0.9714]
[1730425293791,3.97559,2515.4,2515.1,0.9714]
[1730425294009,3.97547,2515.5,2515.1,0.9714]
[1730425294426,7.95028,2515.7,2515.1,0.9714]
[1730425294636,7.95028,2515.7,2515.1,4.94736]
[1730425294920,3.97561,2515.4,2515.1,0.9714]
[1730425295122,3.97567,2515.3,2515.1,0.9714]
[1730425295313,3.97582,2515.2,2514.7,4.97379]
[1730425295703,3.97644,2514.9,2514.4,0.9972]
[1730425296014,7.95214,2515.1,2514.4,1.07673392]
[1730425296213,3.97603,2515.1,2514.5,3.97692]
[1730425296589,3.97616,2515.0,2514.5,3.97692]
[1730425298423,3.97603,2515.1,2514.5,3.97693]
[1730425298424,0.9745,2515.1,2514.5,3.97693]
[1730425298639,3.97576,2515.3,2514.8,3.97642]
[1730425298840,3.97543,2515.5,2514.9,4.97336]
[1730425299390,3.97543,2515.5,2515.0,3.97613]
[1730425299633,4.19499985,2516.1,2515.1,0.497333]
[1730425299838,3.97582,2515.2,2514.9,0.9972]
[1730425299995,3.9754,2515.5,2514.9,0.9972]
[1730425300195,7.95084,2515.5,2514.9,4.97338]
[1730425300705,3.97552,2515.4,2514.9,0.9972]
[1730425300892,3.9754,2515.5,2514.9,0.9972]
[1730425301104,3.9754,2515.5,2514.9,5.470841]
[1730425301312,3.97559,2515.4,2514.9,5.470841]
[1730425301508,7.95088,2515.5,2514.9,5.470841]
[1730425301717,3.97553,2515.4,2514.9,1.494571]
[1730425301924,3.97553,2515.4,2514.9,0.9972]
[1730425301925,3.97592,2515.2,2514.9,0.9972]
[1730425302393,1.0085,2515.4,2514.6,0.9656]
[1730425302599,3.97661,2514.7,2514.6,0.9656]
[1730425302816,3.97642,2514.9,2514.6,0.9656]
[1730425303019,3.97604,2515.1,2514.6,0.9656]
[1730425303204,7.95217,2515.1,2514.6,0.9656]
[1730425303413,3.97604,2515.1,2514.6,0.9656]
[1730425303730,7.95217,2515.1,2514.6,0.9656]
[1730425303901,3.9766,2514.8,2514.1,3.97746]
[1730425304108,3.9766,2514.8,2514.3,0.9947]
[1730425304629,3.97624,2515.0,2514.5,3.9769]
[1730425305134,1.0085,2515.4,2514.3,0.9947]
[1730425305341,1.0085,2515.4,2514.8,0.954]
[1730425305633,3.97549,2515.5,2514.9,0.493055]
[1730425305634,3.97535,2515.5,2514.9,0.493055]
[1730425305842,3.97535,2515.5,2514.8,0.954]
[1730425306193,3.97535,2515.5,2514.8,4.93036]
[1730425306933,3.97512,2515.7,2514.9,3.97619]
[1730425307141,3.97528,2515.6,2514.9,3.97619]
[1730425307339,3.97528,2515.6,2514.9,4.86686]
[1730425308248,0.9918,2515.8,2514.9,4.86693]
[1730425308452,3.97507,2515.7,2515.0,3.97602]
[1730425308616,4.96681,2515.8,2515.1,3.97595]
[1730425308820,6.160956,2515.8,2515.1,3.97595]
[1730425309314,2.185946,2515.8,2514.9,4.86687]
[1730425309513,3.97528,2515.6,2514.9,4.86687]
[1730425309815,3.97528,2515.6,2515.0,3.97613]
[1730425310019,3.97505,2515.7,2515.1,3.97595]
[1730425310321,3.97522,2515.6,2514.9,8.84306]
[1730425310520,3.97522,2515.6,2514.9,4.86686]
[1730425310756,3.97498,2515.8,2515.1,0.9246]
[1730425310908,3.97498,2515.8,2515.1,4.9005]
[1730425311253,6.97464,2516.0,2515.3,3.97551]
[1730425311417,6.97464,2516.0,2515.4,3.97548]
[1730425311745,3.97473,2515.9,2515.3,3.97551]
[1730425311949,6.97464,2516.0,2515.4,3.97539]
[1730425312155,4.95084,2516.2,2515.3,0.81561226]
[1730425312345,3.97441,2516.1,2515.5,0.9246]
[1730425312543,3.97441,2516.1,2515.5,4.89985]
[1730425312718,3.97434,2516.2,2515.5,0.9246]
[1730425312918,3.97434,2516.2,2515.7,3.975]
[1730425313115,8.74949919,2516.2,2515.6,3.97516]
[1730425313426,3.97449,2516.1,2515.6,3.97516]
[1730425314468,4.77513919,2516.2,2515.5,0.9246]
[1730425314754,3.97465,2516.0,2515.5,0.9246]
[1730425314931,4.10909985,2516.1,2514.9,0.92]
[1730425315134,7.95124,2515.4,2514.9,0.92]
[1730425315339,0.9178,2515.6,2514.9,0.92]
[1730425315340,3.97535,2515.5,2514.9,0.92]
[1730425315542,0.9178,2515.6,2515.3,3.97557]
[1730425315820,3.19129985,2515.8,2515.1,3.97587]
[1730425315821,3.97504,2515.7,2515.1,3.97588]
[1730425316018,4.768154,2515.7,2514.9,4.8962]
[1730425316319,3.97545,2515.5,2514.9,4.8962]
[1730425317351,3.97552,2515.4,2514.9,3.9762]
[1730425317525,3.97536,2515.5,2515.0,4.97571]
[1730425317729,3.97536,2515.5,2515.0,0.9996]
[1730425317944,3.97569,2515.3,2515.0,0.9996]
[1730425318654,3.97569,2515.3,2514.6,0.9303]
[1730425318950,3.97598,2515.1,2514.6,0.9303]
[1730425319721,3.97598,2515.1,2514.6,4.90703]
[1730425319965,3.97569,2515.3,2514.6,0.9303]
[1730425320256,7.95144,2515.3,2514.7,3.97652]
[1730425320564,3.97569,2515.3,2514.8,3.97641]
[1730425320765,4.95322,2515.8,2514.8,3.97641]
[1730425320766,3.9751,2515.7,2515.1,0.9378]
[1730425320918,3.9751,2515.7,2515.1,1.429194]
[1730425320919,3.97525,2515.6,2515.1,1.429194]
[1730425321744,3.9751,2515.7,2515.1,5.405164]
[1730425321954,0.9783,2515.8,2515.1,0.9378]
[1730425322160,0.9783,2515.8,2514.6,5.29785231]
[1730425322161,3.97603,2515.1,2514.8,0.9378]
[1730425323188,3.97576,2515.3,2514.8,0.9378]
[1730425323189,3.97583,2515.2,2514.8,0.9378]
[1730425323468,7.95156,2515.3,2514.8,0.9378]
[1730425324224,3.97576,2515.3,2514.8,4.91424]
[1730425324423,3.97576,2515.3,2514.8,0.9378]
[1730425324655,3.9752,2515.6,2515.0,3.97602]
[1730425324820,7.9505,2515.6,2514.9,7.95242]
[1730425325221,3.97537,2515.5,2514.9,3.97619]
[1730425325443,3.9761,2515.1,2514.9,0.88905]
[1730425325765,3.97581,2515.3,2514.8,0.9378]
[1730425325966,3.97602,2515.1,2514.8,0.9378]
[1730425326466,3.97581,2515.3,2514.8,4.91425]
[1730425326629,3.9758,2515.3,2514.8,0.9378]
[1730425326830,3.97583,2515.2,2514.8,0.9378]
[1730425327233,3.97598,2515.1,2514.8,0.9378]
[1730425327427,3.97522,2515.6,2514.8,0.9378]
[1730425327627,3.97584,2515.2,2514.8,0.9378]
[1730425327869,4.372922,2515.5,2514.8,0.9378]
[1730425328164,3.9761,2515.1,2514.8,0.9378]
[1730425328335,3.97575,2515.3,2514.8,0.9378]
[1730425328536,3.97575,2515.3,2514.8,4.91424]
[1730425328765,3.9759,2515.2,2514.8,0.9378]
[1730425328938,3.97575,2515.3,2514.8,0.9378]
[1730425329273,3.976,2515.1,2514.8,0.9378]
[1730425329663,3.97575,2515.3,2514.8,0.9378]
[1730425329859,3.97591,2515.2,2514.8,0.9378]
[1730425330259,3.97575,2515.3,2514.8,4.91425]
[1730425330502,3.97575,2515.3,2514.8,0.9378]
[1730425330704,4.372912,2515.5,2514.8,0.9378]
[1730425330705,7.95082,2515.5,2514.9,3.9762]
[1730425331006,3.97529,2515.6,2515.1,3.97587]
[1730425331560,3.9748,2515.9,2515.3,3.97564]
[1730425331794,3.9748,2515.9,2515.4,0.929]
[1730425331795,3.97481,2515.9,2515.4,0.929]
[1730425331990,7.94965,2515.9,2515.4,0.929]
[1730425332192,3.9745,2516.1,2515.5,3.97534]
[1730425332367,3.97449,2516.1,2515.4,1.419457]
[1730425332565,7.94964,2515.9,2515.4,1.419457]
[1730425332905,3.97482,2515.9,2515.4,1.419457]
[1730425333106,3.97488,2515.8,2515.4,1.419457]
[1730425333262,7.9502,2515.7,2515.4,0.929]
[1730425333665,3.97505,2515.7,2515.4,0.929]
[1730425333883,3.97483,2515.9,2515.4,0.929]
[1730425334084,3.97483,2515.9,2515.4,4.90448]
[1730425334301,3.9745,2516.1,2515.5,3.97533]
[1730425334505,3.97489,2515.8,2515.4,1.419448]
[1730425334882,7.94932,2516.0,2515.4,5.394938]
[1730425335404,3.97441,2516.1,2515.6,3.97508]
[1730425335903,7.94868,2516.2,2515.6,3.97508]
[1730425336119,3.97428,2516.2,2515.7,0.397508]
[1730425336762,0.05965186,2516.3,2515.8,0.9586]
[1730425336985,0.05965186,2516.3,2515.9,3.97463]
[1730425337179,0.05965186,2516.3,2515.8,8.9083]
[1730425337816,0.05965186,2516.3,2515.8,8.90823]
[1730425338014,0.05965186,2516.3,2515.9,0.9305738]
[1730425338234,0.05965186,2516.3,2515.9,4.9052738]
[1730425338716,0.05965186,2516.3,2515.9,0.9305738]
[1730425338922,0.05965186,2516.3,2515.9,4.9052038]
[1730425339416,0.05965186,2516.3,2515.8,0.9586]
[1730425339718,3.97512,2515.7,2515.5,0.9269]
[1730425339895,3.975,2515.8,2515.5,0.9269]
[1730425340299,1.04475186,2516.3,2515.5,0.9269]
[1730425340607,3.97464,2516.0,2515.5,0.9269]
[1730425342031,3.97455,2516.1,2515.5,4.90216]
[1730425342241,0.05965186,2516.3,2515.8,0.9986]
[1730425342400,0.05965186,2516.3,2515.8,4.97334]
[1730425342603,4.03375186,2516.3,2515.9,0.894827]
[1730425343633,0.05965186,2516.3,2515.9,0.894827]
[1730425343806,0.05965186,2516.3,2515.9,7.94926]
[1730425343998,0.05965186,2516.3,2515.9,3.97463]
[1730425344320,0.05965186,2516.3,2516.2,3.97424]
[1730425344535,0.05965186,2516.3,2516.1,3.97431]
[1730425344907,0.05965186,2516.3,2515.9,3.97463]
[1730425345255,0.05965186,2516.3,2516.0,0.497323]
[1730425345749,0.05965186,2516.3,2516.1,3.97439]
[1730425346109,0.05965186,2516.3,2516.2,4.96204]
[1730425346311,0.05965186,2516.3,2516.2,0.9878]
[1730425347414,4.03373186,2516.3,2516.2,0.9878]
[1730425348123,4.03373186,2516.3,2515.9,0.9507]
[1730425348324,4.03373186,2516.3,2516.0,0.39507]
[1730425348620,3.97408,2516.3,2516.0,0.39507]
[1730425348949,7.94828,2516.3,2516.0,0.39507]
[1730425349146,3.97408,2516.3,2516.0,0.39507]
[1730425350035,3.97336,2516.8,2516.0,0.39507]
[1730425350236,3.97402,2516.4,2515.9,0.9507]
[1730425350935,3.97425,2516.2,2515.9,0.9507]
[1730425351512,7.94799,2516.4,2515.9,0.9507]
[1730425351844,3.97394,2516.4,2515.9,0.9507]
[1730425352048,3.97394,2516.4,2516.0,0.492554]
[1730425352258,7.94802,2516.4,2516.0,0.492554]
[1730425352613,3.97394,2516.4,2516.0,0.492554]
[1730425352813,3.97409,2516.3,2516.0,0.492554]
[1730425353656,3.97314,2516.9,2516.1,4.96745]
[1730425353856,0.112597,2517.0,2516.3,0.9931]
[1730425354027,7.94715,2516.7,2516.3,0.9931]
[1730425354226,7.94711,2516.7,2516.3,0.9931]
[1730425354772,3.97393,2516.4,2516.3,0.9931]
[1730425354970,0.112597,2517.0,2516.3,0.9931]
[1730425354971,3.97355,2516.7,2516.3,0.9931]
[1730425355556,7.94651,2516.9,2516.3,1.48985]
[1730425355719,3.112597,2517.0,2516.4,3.97393]
[1730425355916,0.112597,2517.0,2516.5,3.97373]
[1730425356115,0.112597,2517.0,2516.5,7.94746]
[1730425356355,0.112597,2517.0,2516.5,3.97373]
[1730425356544,0.112597,2517.0,2516.6,0.397373]
[1730425356943,0.112597,2517.0,2516.7,3.97335]
[1730425357144,0.112597,2517.0,2516.6,4.370983]
[1730425358264,0.112597,2517.0,2516.6,8.344413]
[1730425358454,0.112597,2517.0,2516.6,4.370883]
[1730425358659,3.97329,2516.8,2516.6,0.397373]
[1730425358848,3.97315,2516.9,2516.3,5.46392]
[1730425359047,3.97347,2516.7,2516.3,0.9931]
[1730425359584,3.97362,2516.6,2516.3,0.9931]
[1730425359874,3.97347,2516.7,2516.3,0.9931]
[1730425360166,3.97363,2516.6,2516.3,0.9931]
[1730425360574,3.97347,2516.7,2516.3,0.9931]
[1730425361069,7.94707,2516.7,2516.3,0.9931]
[1730425361377,3.97322,2516.9,2516.3,5.46377]
[1730425361548,3.97334,2516.8,2516.3,5.46377]
[1730425361750,7.9465,2516.9,2516.3,5.46377]
[1730425361938,3.97322,2516.9,2516.3,5.46377]
[1730425362138,3.97338,2516.8,2516.3,4.96703]
[1730425362438,3.9733,2516.8,2516.3,4.96703]
[1730425362660,0.112597,2517.0,2516.3,4.96703]
[1730425362973,7.94651,2516.9,2516.3,4.96703]
[1730425363344,0.112597,2517.0,2516.5,0.9639]
[1730425363496,0.112597,2517.0,2516.7,3.97334]
[1730425363651,0.112597,2517.0,2516.8,0.40528004]
[1730425364066,0.112597,2517.0,2516.8,4.37857004]
[1730425364354,0.112597,2517.0,2516.3,9.5655342]
[1730425364355,3.97338,2516.8,2516.3,3.97407]
[1730425364664,3.97341,2516.8,2516.3,3.97407]
[1730425364862,3.97341,2516.8,2516.3,4.865297]
[1730425365074,3.97341,2516.8,2516.3,0.891227]
[1730425365284,3.9735,2516.7,2516.3,0.891227]
[1730425365847,3.97393,2516.4,2516.3,0.891227]
[1730425366148,3.9741,2516.3,2515.9,0.9332]
[1730425366368,7.94768,2516.5,2515.9,0.9332]
[1730425366694,7.94768,2516.5,2516.0,3.97455]
[1730425366695,3.97378,2516.5,2516.0,3.97455]
[1730425367780,2.5914942,2516.8,2516.0,3.97447]
[1730425367948,0.112597,2517.0,2515.9,1.01268537]
[1730425367949,3.0,2516.9,2516.3,3.974]
[1730425368150,4.4955067,2517.0,2516.4,4.89024]
[1730425368346,4.085717,2517.0,2516.4,4.89024]
[1730425368749,4.085717,2517.0,2516.4,4.96971367]
[1730425369383,4.085687,2517.0,2516.4,4.89024]
[1730425369587,4.085587,2517.0,2516.5,3.97367]
[1730425369860,0.112597,2517.0,2516.6,0.489007]
[1730425370554,0.112597,2517.0,2516.6,4.462587]
[1730425370756,0.112597,2517.0,2516.6,0.489007]
[1730425370757,4.085617,2517.0,2516.6,0.489007]
[1730425370970,0.112597,2517.0,2516.6,0.489007]
[1730425371170,0.112597,2517.0,2516.7,3.97344]
[1730425371371,0.112597,2517.0,2516.8,0.4462447]
[1730425372181,0.112597,2517.0,2516.9,0.9164]
[1730425372512,0.112597,2517.0,2516.9,4.88954]
[1730425374082,0.112597,2517.0,2516.9,4.96899106]
[1730425374635,0.112597,2517.0,2516.9,5.43954]
[1730425374817,0.112597,2517.0,2516.9,6.42544647]
[1730425374979,0.112597,2517.0,2516.9,12.02694067]
[1730425375516,0.112597,2517.0,2516.9,12.32329041]
[1730425376076,0.112597,2517.0,2516.9,12.02694067]
[1730425376298,3.97062,2518.5,2517.9,4.97106]
[1730425376716,3.97062,2518.5,2517.9,4.97107]
[1730425376978,3.97094,2518.3,2518.0,0.894267]
[1730425377173,0.9325,2518.7,2518.0,0.894267]
[1730425377395,0.9325,2518.7,2517.9,0.9996]
[1730425377594,3.97071,2518.5,2517.9,4.97105]
[1730425378517,3.97087,2518.4,2517.9,0.9996]
[1730425378921,2.5914942,2518.6,2517.9,0.9996]
[1730425379082,3.97135,2518.1,2517.7,0.9187]
[1730425379281,3.97146,2518.0,2517.7,0.9187]
[1730425379612,3.97135,2518.1,2517.7,0.9187]
[1730425379613,3.97158,2517.9,2517.7,0.9187]
[1730425380029,3.97172,2517.8,2517.7,0.9187]
[1730425380320,6.5624542,2518.3,2517.3,1.0134]
[1730425380321,3.97215,2517.6,2517.3,1.0134]
[1730425380622,4.92498,2518.1,2516.9,4.95897647]
[1730425380623,3.97248,2517.4,2517.0,0.9668]
[1730425380837,3.97282,2517.1,2517.0,1.60401512]
[1730425380981,3.97282,2517.1,2516.7,0.9668]
[1730425381179,3.97267,2517.2,2516.7,0.9668]
[1730425381180,3.97302,2517.0,2516.7,0.9668]
[1730425381623,7.94609,2517.0,2516.7,0.9668]
[1730425381920,3.97302,2517.0,2516.7,0.9668]
[1730425382280,2.5914942,2517.4,2516.4,0.9431]
[1730425382632,3.97377,2516.5,2516.0,0.9431]
[1730425382921,3.97377,2516.5,2516.0,4.91763]
[1730425383121,3.9735,2516.7,2516.1,3.97438]
[1730425383321,3.97322,2516.9,2516.2,4.05358362]
[1730425383486,3.97322,2516.9,2516.3,3.97403]
[1730425383685,3.97322,2516.9,2516.4,0.40535036]
[1730425383906,3.97322,2516.9,2516.5,0.9431]
[1730425384283,3.97268,2517.2,2516.5,0.9431]
[1730425384511,3.97315,2516.9,2516.5,0.9431]
[1730425384720,3.97298,2517.0,2516.5,0.9431]
[1730425384910,3.97334,2516.8,2516.5,0.9431]
[1730425385216,3.97315,2516.9,2516.5,0.9431]
[1730425385428,0.9641,2517.3,2516.5,0.9431]
[1730425385429,3.97266,2517.2,2516.5,0.9431]
[1730425385581,7.94683,2516.8,2516.5,0.9431]
[1730425385780,3.97341,2516.8,2516.5,0.9431]
[1730425386196,6.97238,2517.4,2516.5,0.9431]
[1730425386197,4.11304447,2518.5,2517.3,0.9189]
[1730425386382,3.97176,2517.8,2517.3,0.9189]
[1730425387990,3.97159,2517.9,2517.3,4.8914]
[1730425388188,3.97173,2517.8,2517.3,0.9189]
[1730425389079,3.97144,2518.0,2517.3,4.89128]
[1730425389445,3.97144,2518.0,2517.4,3.97234]
[1730425389783,5.40788924,2518.2,2517.6,3.97193]
[1730425390107,5.40788924,2518.2,2517.7,3.97182]
[1730425391125,3.97118,2518.2,2517.7,3.97182]
[1730425391624,3.97086,2518.4,2517.8,0.9919]
[1730425391792,3.97054,2518.6,2517.9,3.97152]
[1730425391995,7.11884447,2518.8,2518.1,3.97111]
[1730425391996,4.90113,2518.8,2518.1,3.97111]
[1730425392213,4.90113,2518.8,2518.2,3.97107]